Cogmind - Beta 16 @@@ ROGUE MODE // 2025.10.24 @ 15:33:39 Player: Moodge Result: Destroyed by G-34 Mercenary with Small Laser Performance ------------- Evolutions (1) 500 Regions Visited (3) 600 Robots Destroyed (11) 55 Value Destroyed (379) 379 Prototype IDs (0) 0 Alien Tech Used (0) 0 Bonus (0) 0 TOTAL SCORE: 1534 Bonus ------- None Cogmind --------- Core Integrity 0/400 Matter 265/300 Energy 83/100 System Corruption 0% Temperature Cool (12) Movement Core (50) Location -9/Materials Parts ------- > --- POWER (3) -------- (None) > --- PROPULSION (2) --- (None) > --- UTILITY (2) ------ Improved Terrain Scan Processor Propulsion Shielding > --- WEAPON (2) ------- (None) > --- INVENTORY (5) ---- Small Storage Unit Peak State ------------ > --- POWER ------------ Light Nuclear Core Light Nuclear Core Light Nuclear Core > --- PROPULSION ------- Aluminum Leg Aluminum Leg > --- UTILITY ---------- Heavy Armor Plating > --- WEAPON ----------- EM Pulse Gun Datajack > --- INVENTORY -------- Small Storage Unit Improved Terrain Scan Processor Improved Terrain Scan Processor Heavy Armor Plating [Rating: 20] Favorites ----------- Power Light Nuclear Core Engine Ion Engine Power Core Light Nuclear Core Propulsion Aluminum Leg Treads Light Treads Leg Aluminum Leg Wheel Wheel Utility Small Storage Unit Storage Small Storage Unit Processor Visual Processing Unit Protection Heavy Armor Plating Weapon EM Pulse Gun Energy Gun EM Pulse Gun Special Melee Weapon Datajack Build | -11 -10 -10 -9 ------- Run | Yrd Mat Min Mat Slots Evolved 2 | . . . 2 Power 2 | . . . 2 Propulsion . | . . . . Utility . | . . . . Weapon . | . . . . Parts Attached 21 | 8 2 . 11 Power 5 | 1 . . 4 Engine 2 | 1 . . 1 Core 3 | . . . 3 Reactor . | . . . . Propulsion 4 | 4 . . . Treads 1 | 1 . . . Leg 2 | 2 . . . Wheel 1 | 1 . . . Hover . | . . . . Flight . | . . . . Utility 8 | 1 2 . 5 Device . | . . . . Storage 1 | 1 . . . Processor 3 | . 1 . 2 Hackware . | . . . . Protection 4 | . 1 . 3 Artifact . | . . . . Weapon 4 | 2 . . 2 Energy Gun 2 | 2 . . . Energy Cannon . | . . . . Ballistic Gun . | . . . . Ballistic Cannon . | . . . . Launcher . | . . . . Special Weapon . | . . . . Impact Weapon . | . . . . Slashing Weapon . | . . . . Piercing Weapon . | . . . . Special Melee Weapon 2 | . . . 2 Unidentified Prototypes . | . . . . Parts Lost 11 | . . . 11 Power 3 | . . . 3 Propulsion 2 | . . . 2 Utility 2 | . . . 2 Weapon 4 | . . . 4 Highest Loss Streak 10 | . . . 10 To Critical Strikes . | . . . . Average Backups 4 | 2 4 7 4 Power . | . 1 1 . Propulsion 1 | 1 2 2 . Utility 2 | . 1 4 3 Weapon . | . . . . Tool/Special . | . . . . Unused Backups 4 | . . . 4 Power . | . . . . Propulsion 1 | . . . 1 Utility 3 | . . . 3 Weapon . | . . . . Tool/Special . | . . . . Average Slot Usage (%) 84 | . 95 100 75 Engine 8 | . 14 14 4 Core 11 | . . . 20 Leg 22 | . 28 28 18 Storage 7 | . 14 14 3 Processor 4 | . 3 14 4 Protection 6 | . 6 . 6 Energy Gun 17 | . 28 28 9 Special Melee Weapon 4 | . . . 7 Peak Build Rating 20 | 6 8 8 20 Average Rating 11 | 4 6 8 14 On Entrance 5 | . 6 8 8 Avg Prop Armor Cover (%) . | . . . . Naked Turns 3 | . . . 3 Heaviest Build 33 | 13 16 13 33 Greatest Support 20 | 20 20 20 20 Greatest Overweight (x) 8 | . . . 8 Average Overweight (x) . | . . . . Largest Inventory Capacity 8 | 8 8 8 8 Average Capacity 6 | 6 8 8 5 Most Carried 8 | 5 7 7 8 Average Carried 4 | 2 4 7 5 Final Capacity 8 | 8 8 8 5 Final Carried 7 | 3 7 7 1 Class Distribution -------------------- 100% | Mutant Dominant Class ---------------- Mutant | -10/Materials Mutant | -10/Mines Mutant | -9/Materials Resources | -11 -10 -10 -9 ----------- Run | Yrd Mat Min Mat Matter Collected 455 | 235 55 . 165 Remotely . | . . . . Salvage Created 458 | . 77 104 277 Parts 20 | . 6 3 11 Haulers Intercepted . | . . . . Recyclers Shooed . | . . . . Parts Field Recycled . | . . . . Retrieved Matter . | . . . . Parts Self-Destructed . | . . . . Prevented . | . . . . Parts Restored . | . . . . Kills | -11 -10 -10 -9 ------- Run | Yrd Mat Min Mat Combat Hostiles Destroyed 8 | . 1 2 5 Guns 5 | . 1 2 2 AOE 2 | . . . 2 Classes Destroyed 5 | . 2 . 3 Builder 1 | . 1 . . Operator 1 | . . . 1 Watcher 1 | . . . 1 Grunt 7 | . 1 2 4 Sentry 1 | . . . 1 Best Kill Streak 3 | . 2 2 3 Combat Bots Only 3 | . 1 2 3 Max Kills in Single Turn 2 | . 1 1 2 Gunslinging . | . . . . Exploded 2 | . . . 2 Melee . | . . . . Uniques/NPCs Destroyed . | . . . . Combat | -11 -10 -10 -9 -------- Run | Yrd Mat Min Mat Hostile Shots Fired 162 | . 8 8 146 Missed 37 | . 3 . 34 Hits 125 | . 5 8 112 Projectile 125 | . 5 8 112 Critical Strikes 3 | . . . 3 Damage Taken 1573 | . 73 97 1403 Core 446 | . 14 25 407 Absorbed by Shields . | . . . . Core Remaining (%) 92 | 100 . 84 . Volleys Fired 44 | . 5 5 34 Largest 2 | . 2 2 2 Hottest 80 | . 80 80 80 Shots Fired 58 | . 10 10 38 Gun 58 | . 10 10 38 Cannon . | . . . . Launcher . | . . . . Special . | . . . . Kinetic . | . . . . Thermal 14 | . 5 5 4 Explosive . | . . . . Electromagnetic 44 | . 5 5 34 Robot Hit Streak 5 | . 4 4 5 Robot Miss Streak 4 | . 1 1 4 Penetration Max . | . . . . Secondary Targets . | . . . . Shots Hit Robots 40 | . 7 7 26 Core Hits 18 | . 3 5 10 Critical Kills . | . . . . Critical Parts Destroyed . | . . . . Critical Strikes . | . . . . Melee Attacks 5 | . . . 5 Impact . | . . . . Slashing . | . . . . Piercing . | . . . . Sneak Attacks . | . . . . Combat Hostiles . | . . . . Follow-up Attacks . | . . . . Damage Inflicted 542 | . 97 81 364 Guns 457 | . 97 81 279 Cannons . | . . . . Explosions 85 | . . . 85 Melee . | . . . . Ramming . | . . . . Kinetic . | . . . . Thermal 212 | . 55 41 116 Explosive . | . . . . Electromagnetic 330 | . 42 40 248 Impact . | . . . . Slashing . | . . . . Piercing . | . . . . Highest Corruption . | . . . . Average Corruption . | . . . . Corruption Purged . | . . . . Corruption Blocked . | . . . . Overload Shots . | . . . . Overflow Damage . | . . . . Projectiles . | . . . . Explosions . | . . . . Melee . | . . . . Knockbacks . | . . . . Impact . | . . . . Kinetic . | . . . . Secondary . | . . . . Self-Inflicted Damage 17 | . . . 17 Shots 1 | . . . 1 Rammed . | . . . . Targets Rammed . | . . . . Kicked . | . . . . Crushed . | . . . . Highest Temperature 434 | . 135 141 434 Average Temperature 204 | . 63 78 225 Received Heat Transfer 903 | . 45 57 801 Effects 19 | . . . 19 Shutdowns 12 | . . . 12 Interference 3 | . . . 3 Damage (major) 4 | . . . 4 Siege Activations . | . . . . Martial Activations . | . . . . Shielding Activations . | . . . . Robots Disrupted . | . . . . Combat Hostiles . | . . . . Robots Corrupted 1 | . . . 1 Combat Hostiles 1 | . . . 1 Parts Fried 2 | . . . 2 Impact Corruptions . | . . . . Robots Melted . | . . . . Combat Hostiles . | . . . . Parts Melted . | . . . . Heat Transferred 500 | . 125 100 275 Parts Sabotaged . | . . . . Parts Stolen . | . . . . Parts Stripped . | . . . . Power Chain Reactions 2 | . . . 2 Alert | -11 -10 -10 -9 ------- Run | Yrd Mat Min Mat Maximum Alert Level . | . . . . Low Security (%) 100 | 100 100 100 100 Level 1 . | . . . . Level 2 . | . . . . Level 3 . | . . . . Level 4 . | . . . . Level 5 . | . . . . High Security . | . . . . Max Security . | . . . . Peak Influence 88 | . 30 40 88 Initial 15 | . . . 15 Average 17 | . 2 19 29 Influence Increases 263 | . 35 50 178 Destroy 0b10 Robot/C 160 | . 20 40 100 Destroy 0b10 Robot/NC 15 | . 5 . 10 Destroy Leader 52 | . 10 10 32 Disable Machine 30 | . . . 30 Destroy Structure 6 | . . . 6 Influence Decreases 263 | . 35 10 218 Entered New Map 25 | . . . 25 Time Decay 168 | . 5 10 153 Lost Part 40 | . . . 40 Purge Threat 30 | . 30 . . Squads Dispatched 3 | . 1 . 2 Investigation 2 | . 1 . 1 Extermination . | . . . . Reinforcement 1 | . . . 1 Assault . | . . . . Garrison . | . . . . Intercept . | . . . . Searches Triggered . | . . . . Construction Impeded . | . . . . Haulers Reinforced . | . . . . Active Scanning Responses . | . . . . Cargo Convoy Interrupts . | . . . . Stealth | -11 -10 -10 -9 --------- Run | Yrd Mat Min Mat Distress Signals 4 | . 3 . 1 Communications Jammed . | . . . . Distress Signals . | . . . . Times Spotted 22 | . 2 2 18 Peak Tracking Total 9 | . 2 2 9 Tactical Retreats . | . . . . Traps | -11 -10 -10 -9 ------- Run | Yrd Mat Min Mat Traps Triggered . | . . . . Indirectly . | . . . . Trap Hack Attempts . | . . . . Triggered . | . . . . Disarmed . | . . . . Reprogrammed . | . . . . Reused . | . . . . Traps Extracted . | . . . . Installed . | . . . . Triggered . | . . . . Machines | -11 -10 -10 -9 ---------- Run | Yrd Mat Min Mat Machines Disabled 2 | . . . 2 Max in Single Turn 1 | . . . 1 Machines Repaired . | . . . . Machines Dismantled . | . . . . Machines Sabotaged . | . . . . Overloaded Fab Kills . | . . . . Hacking | -11 -10 -10 -9 --------- Run | Yrd Mat Min Mat Machines Accessed 5 | . 4 . 1 Terminals 5 | . 4 . 1 Fabricators . | . . . . Repair Stations . | . . . . Recycling Units . | . . . . Scanalyzers . | . . . . Garrison Access . | . . . . Total Hacks 19 | . 17 . 2 Successful 10 | . 10 . . Failed 9 | . 7 . 2 Catastrophic 1 | . 1 . . Database Lockouts . | . . . . Manual . | . . . . Terminals 19 | . 17 . 2 Fabricators . | . . . . Repair Stations . | . . . . Recycling Units . | . . . . Scanalyzers . | . . . . Garrison Access . | . . . . Terminal Hacks 10 | . 10 . . Record 3 | . 3 . . Robot Analysis 1 | . 1 . . Alert Level 2 | . 2 . . Unreport Threat 1 | . 1 . . Dispatch Records 1 | . 1 . . Reinforcement Status 1 | . 1 . . Zone Layout 1 | . 1 . . Fabricator Hacks . | . . . . Repair Station Hacks . | . . . . Recycling Unit Hacks . | . . . . Scanalyzer . | . . . . Garrison Access Hacks . | . . . . Unauthorized Hacks . | . . . . Terminals . | . . . . Fabricators . | . . . . Repair Stations . | . . . . Recycling Units . | . . . . Scanalyzers . | . . . . Garrison Access . | . . . . Data Cores Recovered . | . . . . Used . | . . . . Hacking Detections 5 | . 4 . 1 Full Trace Events 3 | . 2 . 1 Feedback Events . | . . . . Feedback Blocked . | . . . . Robot Schematics Acquired . | . . . . Robots Built . | . . . . Authchips . | . . . . Time . | . . . . Total Robot Build Rating . | . . . . Part Schematics Acquired . | . . . . Parts Built . | . . . . Authchips . | . . . . Time . | . . . . Total Part Build Rating . | . . . . Part Studies Acquired . | . . . . Parts Repaired . | . . . . Time . | . . . . Parts Recycled . | . . . . Recycled Matter . | . . . . Retrieved Matter . | . . . . Retrieved Components . | . . . . Parts Scanalyzed . | . . . . Part Schematics Acquired . | . . . . Parts Damaged . | . . . . Bothacking | -11 -10 -10 -9 ------------ Run | Yrd Mat Min Mat Used RIF Installer . | . . . . Robots Hacked 2 | . . . 2 Non-combat . | . . . . Combat 2 | . . . 2 Robot Hacks Applied 3 | . . . 3 parse_system 3 | . . . 3 Relay Couplers Released . | . . . . Fabnet Peak Effective % . | . . . . Robots Rewired . | . . . . Allies Hacked . | . . . . Hacks Repelled . | . . . . Allies | -11 -10 -10 -9 -------- Run | Yrd Mat Min Mat Total Allies . | . . . . Largest Group . | . . . . Highest-Rated Group . | . . . . Highest-Rated Ally . | . . . . Total Orders . | . . . . Ally Attacks . | . . . . Total Damage . | . . . . Kills . | . . . . Allies Corrupted . | . . . . Allies Melted . | . . . . Intel | -11 -10 -10 -9 ------- Run | Yrd Mat Min Mat Active Infowar (turns) 216 | . 59 30 127 Optics 216 | . 59 30 127 Robot Analysis Total 1 | . 1 . . Derelict Logs Recovered . | . . . . Drone Launches . | . . . . Drone Recoveries . | . . . . Exploration | -11 -10 -10 -9 ------------- Run | Yrd Mat Min Mat Turns Passed 719 | 63 228 30 398 Spaces Moved 417 | 49 170 13 185 Core 55 | 20 . . 35 Treads . | . . . . Legs 360 | 27 170 13 150 Wheels 2 | 2 . . . Hover . | . . . . Flight . | . . . . Fastest Speed 50 | 50 120 120 50 Average Speed 133 | 89 120 120 157 Slowest Speed 450 | 120 120 120 450 Overloaded Moves . | . . . . Propulsion Burnouts . | . . . . Robots Hopped . | . . . . Potential Cave-ins . | . . . . Cave-ins Triggered . | . . . . Exploration Rate (%) 16 | 4 35 8 17 Regions Visited 3 Branch Regions 1 Pre-discovered Areas . | . . . . Known Exits Taken . | . . . . Unknown Exits Taken 3 | 1 1 1 . Scrap Searched . | . . . . Spaces Dug . | . . . . Terrain Destroyed 5 | . . . 5 Melee . | . . . . Projectile . | . . . . AOE 5 | . . . 5 Terrain Rammed . | . . . . Walls Destroyed . | . . . . Machines Disabled . | . . . . Actions | -11 -10 -10 -9 --------- Run | Yrd Mat Min Mat Total 520 | 66 183 17 254 Wait 2 | . 2 . . Move 414 | 48 169 12 185 Hop . | . . . . Pick Up 22 | 8 5 . 9 Fast Attach 4 | 3 . . 1 Attach 11 | 3 1 . 7 Detach 1 | . . . 1 Swap 6 | 2 1 . 3 Drop 11 | 2 . . 9 Fire 44 | . 5 5 34 Melee 5 | . . . 5 Ram . | . . . . Kick . | . . . . Crush . | . . . . Escape Stasis . | . . . . Rewire . | . . . . Trap . | . . . . Miscellaneous . | . . . . Route ------- -11/Scrapyard -10/Materials -10/Mines -9/Materials History --------- Turn | Location | Event 16 | -11/Scrapyard | Discovered new exit (range 16) 64 | -11/Scrapyard | Entered Materials 65 | -10/Materials | Met a group of wandering Federalists 211 | -10/Materials | Lost 3 allies 256 | -10/Materials | Discovered new exit (range 9) 292 | -10/Materials | Entered Mines 297 | -10/Mines | Discovered new exit (range 6) 311 | -10/Mines | Build established: Mutant 322 | -10/Mines | Entered Materials 322 | -9/Materials | Evolved 2 slots: Power x2 702 | -9/Materials | Core integrity fell below 50% 715 | -9/Materials | Core integrity fell below 20% 720 | -9/Materials | Destroyed by G-34 Mercenary with Small Laser Last Messages --------------- 00656_ Critical hit (Burn: +37). 00658_ Power failure, Lgt. Nuclear Core shutdown. 00659_ Aluminum Leg destroyed. 00666_ Hvy. Armor Plating destroyed. 00670_ Critical hit (Burn: +37). 00674_ Aluminum Leg destroyed. 00676_ Connecting with Terminal... 00676_ Current location identified: Materials 00676_ ALERT: Suspicious activity at Terminal M002. Dispatching Investigation squad. 00684_ Lgt. Nuclear Core destroyed. 00695_ Hvy. Armor Plating destroyed. 00708_ Acquired Propulsion Shielding. 00709_ Discarded Imp. Terrain Scan Processor. 00711_ Acquired Datajack. 00717_ Jacked Y-45 Defender... >>parse_system Reading system data... 00718_ Datajack destroyed. Map ----- +----------------------------------------------------+ | ????????????????????# #? | | ????????????????????# #? | | ??????????????###########+### | | ??????????????# | | ??????????????# | | ??????????????# | | ??????????????###########+### | | ???????????????????????? ?? | | ???????????????????????? ?? | | ???????????????????????? "?? | | ???????????????????????? T?? | | ???????????????????????? "?? | | ????????????????????????] ?? | | ???????????????????????#####? | | ????????????????????????????? | | ????????????????????????????? | | ????????????????????????##### | | ????##################?## T | | #####Y## #?#T | | # !!/ # #?## | | # ! / # #### | | # // # | | # # | | # # g | | # g# | | # @ g/ | | # g# a | | #! / ### | | # #?# ############# | | # #?# #???????????# | | # #?# #???????????+ | | # #?# #???????????# | | ########?# #???????????# | | ?????????# #???????????# ## | | ?????????# ????????????? #? | | ?????????? ????????????? #? | | ?????????? ????????????? ?? | | ?????????? ?????????????????? | | ?????????? ?????????????????? | | ?????????? ?????????????????? | | ?????????? ?????????????????? | | ????????????????????????????? | | ????????????????????????????? | | ????????????????????????????? | | ????????????????????????????? | | ????????????????????????????? | | ????????????????????????????? | | ????????????????????????????? | | ????????????????????????????? | | ????????????????????????????? | +----------------------------------------------------+ Best States ------------- Heat Dissipation 28 Energy Generation 32 Energy Capacity 400 Matter Stores 300 Matter Capacity 300 Sight Range 18 Terrain Scan Density 210 Armor Coverage 600 Propulsion Shielding 33 Evasion (%) 55 Item Schematics ----------------- None Robot Schematics ------------------ None Fabricated ------------ Nothing Repaired ---------- Nothing Studied --------- None Alien Tech Used ----------------- None Achievements -------------- DATA ERROR: Steam Global Achievement% Organ Harvest Spot Them First There's More Where That Came From Challenges ------------ None Game ------ Seed BurstSpreadDesublimator Manual? 0 Play Time 00:12:58 Cumulative 11.2 hours Start 2025.10.24 @ 15:20:34 End 2025.10.24 @ 15:33:39 Sessions 1 Manual Loads 0 Difficulty Rogue Special Mode None Game No. 37 Rogue 37 Adventurer 0 Explorer 0 Win Type - Total 0 Types 0/0/0/0/0/0/0/0/0/0 Lore% 8 Gallery% 15 Achievement% 11 Wizard Run 0 Options --------- Layout 1 ASCII 0 Keyboard 0 Movement Mouse Keybinds 0 Fullscreen 1 Font 32/SmallcapsGlow Map View 50x35 Zoom Use 0% Tactical HUD 1 Map Filters NONE Filters NONE Steam 1 RUN: 1f111280-633d-4ca1-b1b5-29e15d011a58